Cogmind - Beta 16 --- EXPLORER MODE // 2026.01.28 @ 08:42:00 Player: K.K.Y. Result: Destroyed by as-84260 with Assembled Blade Performance ------------- Evolutions (0) 0 Regions Visited (2) 400 Robots Destroyed (29) 145 Value Destroyed (559) 559 Prototype IDs (0) 0 Alien Tech Used (0) 0 Bonus (-39) -39 TOTAL SCORE: 1065 Bonus ------- Friendly Fire -39 Cogmind --------- Core Integrity 0/250 Matter 261/300 Energy 1/100 System Corruption 0% Temperature Critical (539) Movement Core (400) Ox7 Location -10/Mines Parts ------- > --- POWER (1) -------- (None) > --- PROPULSION (2) --- (None) > --- UTILITY (3) ------ Large Storage Unit > --- WEAPON (2) ------- Spread Laser > --- INVENTORY (15) --- Huge Storage Unit Structural Scanner Machine Analyzer Experimental Sensor Array Improved Terrain Scanner Medium Armor Plating Medium Armor Plating Medium Armor Plating Medium Armor Plating Spread Laser Beam Cannon Beam Cannon Mining Laser Mace Peak State ------------ > --- POWER ------------ Ion Engine > --- PROPULSION ------- Light Treads Light Treads > --- UTILITY ---------- Large Storage Unit Structural Scanner Sensor Array > --- WEAPON ----------- Spread Laser Spread Laser > --- INVENTORY -------- Huge Storage Unit Structural Scanner Machine Analyzer Experimental Sensor Array Improved Terrain Scanner Medium Armor Plating Medium Armor Plating Medium Armor Plating Medium Armor Plating Spread Laser Spread Laser Beam Cannon Beam Cannon Mining Laser Mace [Rating: 13] Favorites ----------- Power Ion Engine Engine Ion Engine Propulsion Light Treads Treads Light Treads Utility Sensor Array Device Sensor Array Storage Large Storage Unit Weapon Spread Laser Energy Gun Spread Laser Energy Cannon Beam Cannon Special Weapon Mining Laser Build | -11 -10 -10 ------- Run | Yrd Mat Min Slots Evolved 1 | . 1 . Power . | . . . Propulsion . | . . . Utility 1 | . 1 . Weapon . | . . . Parts Attached 18 | 8 5 5 Power 1 | 1 . . Engine 1 | 1 . . Core . | . . . Reactor . | . . . Propulsion 3 | 2 . 1 Treads 3 | 2 . 1 Leg . | . . . Wheel . | . . . Hover . | . . . Flight . | . . . Utility 5 | 3 1 1 Device 3 | 2 . 1 Storage 2 | 1 1 . Processor . | . . . Hackware . | . . . Protection . | . . . Artifact . | . . . Weapon 9 | 2 4 3 Energy Gun 7 | 2 3 2 Energy Cannon 1 | . . 1 Ballistic Gun . | . . . Ballistic Cannon . | . . . Launcher . | . . . Special Weapon 1 | . 1 . Impact Weapon . | . . . Slashing Weapon . | . . . Piercing Weapon . | . . . Special Melee Weapon . | . . . Unidentified Prototypes . | . . . Parts Lost 6 | . 1 5 Power 1 | . . 1 Propulsion 1 | . . 1 Utility 2 | . . 2 Weapon 2 | . 1 1 Highest Loss Streak 5 | . 1 5 To Critical Strikes . | . . . Average Backups 10 | 2 7 14 Power . | . . . Propulsion . | . . . Utility 6 | 1 4 9 Weapon 4 | 1 2 5 Tool/Special . | . . . Unused Backups 11 | . . 11 Power . | . . . Propulsion . | . . . Utility 9 | . . 9 Weapon 2 | . . 2 Tool/Special . | . . . Average Slot Usage (%) 94 | . 92 97 Engine 11 | . 11 11 Treads 24 | . 24 23 Device 24 | . 25 24 Storage 9 | . 7 12 Energy Gun 23 | . 23 24 Peak Build Rating 13 | 7 12 13 Average Rating 10 | 6 9 11 On Entrance 6 | . 7 12 Avg Prop Armor Cover (%) . | . . . Naked Turns . | . . . Heaviest Build 33 | 11 33 33 Greatest Support 40 | 40 40 40 Greatest Overweight (x) 7 | 1 7 . Average Overweight (x) . | . . . Largest Inventory Capacity 15 | 10 15 15 Average Capacity 11 | 5 8 15 Most Carried 15 | 5 15 15 Average Carried 10 | 2 7 14 Final Capacity 15 | 5 15 15 Final Carried 15 | 4 15 14 Class Distribution -------------------- 100% | Hacker-Mutant Dominant Class ---------------- Hacker-Mutant | -10/Materials Hacker-Mutant | -10/Mines Resources | -11 -10 -10 ----------- Run | Yrd Mat Min Matter Collected 447 | 280 60 107 Remotely . | . . . Salvage Created 926 | 220 510 196 Parts 63 | 24 36 3 Haulers Intercepted 1 | . 1 . Recyclers Shooed . | . . . Parts Field Recycled . | . . . Retrieved Matter . | . . . Parts Self-Destructed . | . . . Prevented . | . . . Parts Restored . | . . . Kills | -11 -10 -10 ------- Run | Yrd Mat Min Combat Hostiles Destroyed 25 | . 10 15 Guns 23 | . 8 15 AOE 2 | . 2 . Classes Destroyed 11 | 2 7 2 Worker 2 | . 2 . Builder 1 | . 1 . Tunneler 7 | 7 . . Hauler 1 | . 1 . Recycler 2 | 1 . 1 Mechanic 1 | . 1 . Watcher 2 | . 2 . Swarmer 4 | . 4 . Grunt 8 | . 6 2 Demolisher 1 | . . 1 Assembled 12 | . . 12 Best Kill Streak 8 | 5 7 8 Combat Bots Only 8 | . 5 8 Max Kills in Single Turn 3 | 1 3 2 Gunslinging 1 | . 1 1 Exploded 2 | . 2 . Melee . | . . . Uniques/NPCs Destroyed . | . . . Combat | -11 -10 -10 -------- Run | Yrd Mat Min Hostile Shots Fired 107 | . 41 66 Missed 20 | . 12 8 Hits 87 | . 29 58 Melee 14 | . . 14 Projectile 73 | . 29 44 AOE 3 | . . 3 Critical Strikes 3 | . 1 2 Part Disruptions 4 | . . 4 Damage Taken 886 | 19 194 673 Core 257 | . 41 216 Absorbed by Shields . | . . . Ignored by Resistances 526 | 11 130 385 Core Remaining (%) 100 | 100 . . Volleys Fired 74 | 14 32 28 Largest 2 | 2 2 2 Hottest 165 | 80 165 130 Shots Fired 125 | 28 55 42 Gun 124 | 28 54 42 Cannon . | . . . Launcher . | . . . Special 1 | . 1 . Kinetic . | . . . Thermal 56 | . 14 42 Explosive . | . . . Electromagnetic 69 | 28 41 . Robot Hit Streak 19 | 13 19 19 Robot Miss Streak 5 | 2 5 4 Penetration Max . | . . . Secondary Targets 9 | . 5 4 Max Gunslinging Chain 1 | . 1 1 Shots Hit Robots 102 | 21 42 39 Core Hits 119 | 9 30 80 Critical Kills . | . . . Critical Parts Destroyed . | . . . Critical Strikes . | . . . Melee Attacks . | . . . Impact . | . . . Slashing . | . . . Piercing . | . . . Sneak Attacks . | . . . Combat Hostiles . | . . . Follow-up Attacks . | . . . Damage Inflicted 1963 | 422 864 677 Guns 1509 | 261 577 671 Cannons . | . . . Explosions 448 | 161 287 . Melee . | . . . Ramming 6 | . . 6 Kinetic . | . . . Thermal 1283 | 161 451 671 Explosive . | . . . Electromagnetic 674 | 261 413 . Impact . | . . . Slashing . | . . . Piercing . | . . . Highest Corruption . | . . . Average Corruption . | . . . Corruption Purged . | . . . Corruption Blocked . | . . . Overload Shots . | . . . Overflow Damage 32 | . 32 . Projectiles . | . . . Explosions 32 | . 32 . Melee . | . . . Knockbacks . | . . . Impact . | . . . Kinetic . | . . . Secondary . | . . . Self-Inflicted Damage 33 | 19 14 . Shots 2 | 1 1 . Rammed 3 | . . 3 Targets Rammed 3 | . . 3 Kicked . | . . . Crushed . | . . . Highest Temperature 648 | 120 207 648 Average Temperature 146 | 41 73 258 Received Heat Transfer 833 | . 129 704 Effects 17 | . . 17 Energy Bleed 3 | . . 3 Interference 6 | . . 6 Matter Decay 1 | . . 1 Short Circuit 2 | . . 2 Damage (minor) 3 | . . 3 Damage (major) 1 | . . 1 Damage (core) 1 | . . 1 Siege Activations . | . . . Martial Activations . | . . . Shielding Activations . | . . . Robots Disrupted . | . . . Combat Hostiles . | . . . Robots Corrupted . | . . . Combat Hostiles . | . . . Parts Fried 1 | . 1 . Impact Corruptions . | . . . Robots Melted . | . . . Combat Hostiles . | . . . Parts Melted . | . . . Heat Transferred 1310 | 50 430 830 Parts Sabotaged . | . . . Parts Stolen . | . . . Parts Stripped . | . . . Power Chain Reactions 5 | 4 1 . Alert | -11 -10 -10 ------- Run | Yrd Mat Min Maximum Alert Level . | . . . Low Security (%) 100 | 100 100 100 Level 1 . | . . . Level 2 . | . . . Level 3 . | . . . Level 4 . | . . . Level 5 . | . . . High Security . | . . . Max Security . | . . . Peak Influence 135 | 10 135 40 Initial . | . . . Average 10 | 1 19 1 Influence Increases 442 | 40 327 75 Destroy 0b10 Robot/C 260 | . 200 60 Destroy 0b10 Robot/NC 80 | 40 35 5 Destroy Leader 66 | . 56 10 Successful Hack 10 | . 10 . Disable Machine 16 | . 16 . Destroy Structure 10 | . 10 . Influence Decreases 442 | 40 327 75 Time Decay 412 | 40 317 55 Lost Part 10 | . 10 . Lost Ally 20 | . . 20 Squads Dispatched 1 | . 1 . Investigation 1 | . 1 . Extermination . | . . . Reinforcement . | . . . Assault . | . . . Garrison . | . . . Intercept . | . . . Searches Triggered . | . . . Construction Impeded . | . . . Haulers Reinforced . | . . . Active Scanning Responses . | . . . Cargo Convoy Interrupts . | . . . Stealth | -11 -10 -10 --------- Run | Yrd Mat Min Distress Signals 2 | . 2 . Communications Jammed . | . . . Distress Signals . | . . . Times Spotted 42 | . 18 24 Peak Tracking Total 15 | . 5 15 Tactical Retreats . | . . . Traps | -11 -10 -10 ------- Run | Yrd Mat Min Traps Triggered 5 | . 5 . Indirectly . | . . . Trap Hack Attempts . | . . . Triggered . | . . . Disarmed . | . . . Reprogrammed 1 | . 1 . Reused . | . . . Traps Extracted . | . . . Installed . | . . . Triggered . | . . . Machines | -11 -10 -10 ---------- Run | Yrd Mat Min Machines Disabled 4 | . 4 . Max in Single Turn 3 | . 3 . Machines Repaired . | . . . Machines Dismantled . | . . . Machines Sabotaged . | . . . Overloaded Fab Kills . | . . . Hacking | -11 -10 -10 --------- Run | Yrd Mat Min Machines Accessed 6 | . 6 . Terminals 5 | . 5 . Fabricators . | . . . Repair Stations . | . . . Recycling Units 1 | . 1 . Scanalyzers . | . . . Garrison Access . | . . . Total Hacks 9 | . 9 . Successful 7 | . 7 . Failed 2 | . 2 . Catastrophic . | . . . Database Lockouts . | . . . Manual 6 | . 6 . Terminals 8 | . 8 . Fabricators . | . . . Repair Stations . | . . . Recycling Units 1 | . 1 . Scanalyzers . | . . . Garrison Access . | . . . Terminal Hacks 1 | . 1 . Reprogram Traps 1 | . 1 . Fabricator Hacks . | . . . Repair Station Hacks . | . . . Recycling Unit Hacks 1 | . 1 . Retrieve Components 1 | . 1 . Scanalyzer . | . . . Garrison Access Hacks . | . . . Unauthorized Hacks 5 | . 5 . Terminals 5 | . 5 . Botnet 5 | . 5 . Fabricators . | . . . Repair Stations . | . . . Recycling Units . | . . . Scanalyzers . | . . . Garrison Access . | . . . Data Cores Recovered . | . . . Used . | . . . Hacking Detections 3 | . 3 . Full Trace Events 1 | . 1 . Feedback Events . | . . . Feedback Blocked . | . . . Robot Schematics Acquired . | . . . Robots Built . | . . . Authchips . | . . . Time . | . . . Total Robot Build Rating . | . . . Part Schematics Acquired . | . . . Parts Built . | . . . Authchips . | . . . Time . | . . . Total Part Build Rating . | . . . Part Studies Acquired . | . . . Parts Repaired . | . . . Time . | . . . Parts Recycled . | . . . Recycled Matter . | . . . Retrieved Matter . | . . . Retrieved Components 3 | . 3 . Parts Scanalyzed . | . . . Part Schematics Acquired . | . . . Parts Damaged . | . . . Bothacking | -11 -10 -10 ------------ Run | Yrd Mat Min Used RIF Installer . | . . . Robots Hacked . | . . . Non-combat . | . . . Combat . | . . . Robot Hacks Applied . | . . . Relay Couplers Released . | . . . Fabnet Peak Effective % . | . . . Robots Rewired . | . . . Allies Hacked . | . . . Hacks Repelled . | . . . Allies | -11 -10 -10 -------- Run | Yrd Mat Min Total Allies 3 | . . 3 Largest Group 3 | . . 3 Highest-Rated Group 40 | . . 40 Highest-Rated Ally 16 | . . 16 Total Orders . | . . . Ally Attacks 5 | . . 5 Total Damage 39 | . . 39 Kills . | . . . Allies Corrupted . | . . . Allies Melted . | . . . Intel | -11 -10 -10 ------- Run | Yrd Mat Min Active Infowar (turns) 2214 | 186 1080 948 Sensors 2175 | 185 1080 910 Structural 2214 | 186 1080 948 Robot Analysis Total . | . . . Derelict Logs Recovered 1 | . . 1 Drone Launches . | . . . Drone Recoveries . | . . . Exploration | -11 -10 -10 ------------- Run | Yrd Mat Min Turns Passed 2270 | 223 1080 967 Spaces Moved 1164 | 79 591 494 Core 26 | 23 3 . Treads 1138 | 56 588 494 Legs . | . . . Wheels . | . . . Hover . | . . . Flight . | . . . Fastest Speed 50 | 50 160 160 Average Speed 158 | 131 161 160 Slowest Speed 400 | 160 400 160 Overloaded Moves . | . . . Propulsion Burnouts . | . . . Robots Hopped . | . . . Potential Cave-ins . | . . . Cave-ins Triggered . | . . . Exploration Rate (%) 59 | 4 89 84 Regions Visited 2 Branch Regions 1 Pre-discovered Areas . | . . . Known Exits Taken 2 | 1 1 . Unknown Exits Taken . | . . . Scrap Searched 1 | . . 1 Spaces Dug . | . . . Terrain Destroyed 27 | 17 10 . Melee . | . . . Projectile . | . . . AOE 27 | 17 10 . Terrain Rammed . | . . . Walls Destroyed . | . . . Machines Disabled . | . . . Actions | -11 -10 -10 --------- Run | Yrd Mat Min Total 1455 | 169 659 627 Wait 151 | 61 1 89 Move 1162 | 78 590 494 Hop . | . . . Pick Up 25 | 7 16 2 Fast Attach 11 | 4 7 . Attach 11 | 4 4 3 Detach 5 | 1 2 2 Swap 5 | . 3 2 Drop 8 | . 4 4 Fire 74 | 14 32 28 Melee . | . . . Ram 1 | . . 1 Kick . | . . . Crush 2 | . . 2 Escape Stasis . | . . . Rewire . | . . . Trap . | . . . Miscellaneous . | . . . Route ------- -11/Scrapyard -10/Materials (discovered 5 exits: *Mat x3 / *Min / *Sub) -10/Mines (discovered 4 exits: *Mat x2 / *Exi / *Sub) History --------- Turn | Location | Event 5 | -11/Scrapyard | Identified exit to Materials 5 | -11/Scrapyard | Discovered exit to Materials (range 16) 224 | -11/Scrapyard | Entered Materials 224 | -10/Materials | Evolved 1 slot: Utility x1 301 | -10/Materials | Build established: Hacker-Mutant 400 | -10/Materials | Identified exit to Materials 400 | -10/Materials | Discovered exit to Materials (range 15) 703 | -10/Materials | Identified exit to Subcaves 703 | -10/Materials | Discovered exit to Subcaves (range 15) 789 | -10/Materials | Discovered exit to Materials (range 13) 1080 | -10/Materials | Discovered exit to Materials (range 14) 1246 | -10/Materials | Identified exit to Mines 1246 | -10/Materials | Discovered exit to Mines (range 12) 1304 | -10/Materials | Entered Mines 1349 | -10/Mines | Discovered exit to Materials (range 9) 1450 | -10/Mines | Discovered exit to Subcaves (range 9) 1493 | -10/Mines | Discovered exit to Materials (range 12) 1947 | -10/Mines | Identified exit to Exiles 1947 | -10/Mines | Discovered exit to Exiles (range 5) 1962 | -10/Mines | Assisted by bots powering up and referring to "LRC-V3" 1999 | -10/Mines | Deemed a non-threat by the Exiles lab entrance 2104 | -10/Mines | Found a damaged Exp. Sensor Array with a note attached 2114 | -10/Mines | Found Prototype Device 2125 | -10/Mines | Assembled infested the area 2155 | -10/Mines | Learned Materials emergency access door positions 2231 | -10/Mines | Core integrity fell below 50% 2245 | -10/Mines | Lost 3 allies 2257 | -10/Mines | Core integrity fell below 20% 2267 | -10/Mines | Destroyed 8 combat bots 2271 | -10/Mines | Destroyed by as-84260 with Assembled Blade Last Messages --------------- System. 02257_ Overheating: System interference. 02257_ Spread Laser temporarily disabled. 02257_ The unstable cave ceiling collapses. 02257_ Broken Structural Scanner destroyed. 02260_ Overheating: Sensor Array damaged (-3). 02260_ R-06 Scavenger collects Launcher Guidance Computer. 02265_ K-01 Serf collects debris. 02266_ R-06 Scavenger collects Aluminum Leg. 02267_ as-86336 destroyed. 02268_ Acquired 4 matter. 02268_ The unstable cave ceiling collapses. 02268_ Broken Spread Laser crushed. 02268_ Sensor Array destroyed. 02268_ K-01 Serf collects debris. 02269_ Overheating: Energy bleed (-3). 02270_ Overheating: Spread Laser damaged (-21). 02271_ Overheating: Energy bleed (-2). 02271_ K-01 Serf collects debris. Map ----- +----------------------------------------------------+ | | | | | | | | | | | | | | | | | | | | | | | | | | | | | ?????????????????????????????? | | ?????????????????????????????? | | ?????????????????????????????? | | #####????????????????????????? | | ######???????###?????????????? | | # ###???????## ?????????????? | | ##???????## ?? ??? | | #######??## #######??? | | #######??###" % # ##??? | | ##???### # ## ## | | ##???### # ## %##a## | | ###???## % %r %a@a ## | | ####??## #k %####### | | #####?## ####? | | ###?## ##??? | | ##?## # ## ####??? | | ###### ##########??? | | ######## #######?????? | | # ##??????????? | | [% ##??????????? | | ####= ##??????????? | | #### ##??????????? | | ## ##### ##??????????? | | ############ ###?????????? | | ######?##### ###?????????? | | ###???????## ##?????????? | | ##???????## ##?????????? | | ##???????### ###?????????? | | ##??????##### #######?????? | | ###??????###### #######????? | | ####??????## ###????? | | ###???????## ##????? | | #?????????## ##### ######? | | #?????????## ###### ! #######? | | #?????????## ##?######## ##? | | #?????????## ##??###### ##? | +----------------------------------------------------+ Best States ------------- Heat Dissipation 25 Energy Generation 10 Energy Capacity 250 Matter Stores 300 Matter Capacity 300 Sight Range 16 Robot Scan Range 14 Terrain Scan Density 10 Resistance: KI 35 Resistance: TH 35 Resistance: EX 35 Resistance: EM 35 Resistance: I 35 Resistance: S 35 Resistance: P 35 Evasion (%) 50 Recoil Reduction 2 Offensive Hacking 20 Item Schematics ----------------- None Robot Schematics ------------------ None Fabricated ------------ Nothing Repaired ---------- Nothing Studied --------- None Alien Tech Used ----------------- None Achievements -------------- None Challenges ------------ None Game ------ Seed InsulatedAngularShell Manual? 0 Play Time 00:12:39 Cumulative 315.6 hours Start 2026.01.28 @ 08:22:06 End 2026.01.28 @ 08:42:00 Sessions 1 Manual Loads 0 Difficulty Explorer Special Mode None Game No. 495 Rogue 0 Adventurer 0 Explorer 495 Win Type - Total 0 Types 0/0/0/0/0/0/0/0/0/0 Lore% 77 Gallery% 70 Achievement% 56 Wizard Run 0 Options --------- Layout 1 ASCII 0 Keyboard 0 Movement Mouse Keybinds 1 Fullscreen 1 Font 24/Smallcaps Map View 50x35 Zoom Use 0% Tactical HUD 1 Map Filters NONE Filters NONE Steam 1 RUN: 1e383e26-dcc0-485c-bfe1-1404595c5b74